[Event "Mukachevo IM June 2019"]
[Site "Mukachevo"]
[Date "2019.06.27"]
[Round "6.4"]
[White "Terletsky, Oleg"]
[Black "Priehoda, Vitezslav"]
[Result "1/2-1/2"]
[ECO "B90"]
[WhiteElo "2318"]
[BlackElo "2361"]
[Annotator "NA"]
[PlyCount "52"]
[EventDate "2019.06.24"]
[EventType "tourn"]
[EventCountry "UKR"]
[SourceTitle "playchess.com"]
[Source "ChessBase"]
[SourceQuality "1"]
[TimeControl "40/5400+30:900+30"]

1. e4 {[%emt 0:02:28]} c5 {[%emt 0:00:00]} 2. Nf3 {[%emt 0:00:14]} d6 {[%emt 0:00:00]} 3. d4 {[%emt 0:00:12]} cxd4 {[%emt 0:00:00]} 4. Nxd4 {[%emt 0:00:03]} Nf6 {[%emt 0:00:00]} 5. Nc3 {[%emt 0:00:10]} a6 {[%emt 0:00:00]} 6. Be3 {[%emt 0:00:10]} e5 {[%emt 0:00:02]} 7. Nb3 {[%emt 0:00:06]} Be7 {[%emt 0:00:24]} 8. f3 {[%emt 0:01:17]} Be6 {[%emt 0:00:07]} 9. Qd2 {[%emt 0:00:08]} O-O {[%emt 0:00:12]} 10. O-O-O {[%emt 0:00:36]} Nbd7 {[%emt 0:00:03]} 11. g4 {[%emt 0:00:23]} b5 {[%emt 0:00:05]} 12. g5 {[%emt 0:00:05]} b4 {[%emt 0:00:09]} 13. Ne2 {[%emt 0:00:06]} Ne8 {[%emt 0:00:04]} 14. f4 {[%emt 0:01:06]} a5 {[%emt 0:00:06]} 15. f5 {[%emt 0:01:20]} a4 {[%emt 0:00:06]} 16. fxe6 {[%emt 0:07:04]} axb3 {[%emt 0:00:13]} 17. exf7+ {[%emt 0:00:06]} Rxf7 {[%emt 0:00:17]} 18. cxb3 {[%emt 0:00:06]} Rxa2 {[%emt 0:01:27]} 19. Kb1 {[%emt 0:00:28]} Qa8 {[%emt 0:05:25]} 20. Ng3 {[%emt 0:03:01]} Rxf1 {[%emt 0:03:13]} 21. Rhxf1 {[%emt 0:00:29]} Ra1+ {[%emt 0:00:06]} 22. Kc2 {[%emt 0:00:03]} Qc6+ {[%emt 0:00:53]} 23. Kd3 {[%emt 0:00:07]} Qb5+ {[%emt 0:00:08]} 24. Kc2 {[%emt 0:00:09]} Qc6+ {[%emt 0:00:05]} 25. Kd3 {[%emt 0:00:05]} Qb5+ {[%emt 0:00:04]} 26. Kc2 {[%emt 0:00:04]} Qc6+ 1/2-1/2

[Event "Mukachevo IM June 2019"]
[Site "Mukachevo"]
[Date "2019.06.27"]
[Round "6.5"]
[White "Larkin, Vladyslav"]
[Black "Boricsev, Oleg"]
[Result "1/2-1/2"]
[ECO "D00"]
[WhiteElo "2398"]
[BlackElo "2252"]
[Annotator "NA"]
[PlyCount "56"]
[EventDate "2019.06.24"]
[EventType "tourn"]
[EventCountry "UKR"]
[SourceTitle "playchess.com"]
[Source "ChessBase"]
[SourceQuality "1"]
[TimeControl "40/5400+30:900+30"]

1. d4 {[%emt 0:00:00]} d5 {[%emt 0:00:00]} 2. Bf4 {[%emt 0:00:00]} c5 {[%emt 0:00:07]} 3. e3 {[%emt 0:00:00]} cxd4 {[%emt 0:00:27]} 4. exd4 {[%emt 0:00:06]} Nc6 {[%emt 0:00:21]} 5. c3 {[%emt 0:00:06]} Bf5 {[%emt 0:00:37]} 6. Nf3 {[%emt 0:04:14]} e6 {[%emt 0:02:52]} 7. Qb3 {[%emt 0:01:31]} Qc8 {[%emt 0:09:30]} 8. Nbd2 {[%emt 0:11:16]} Nf6 {[%emt 0:01:14]} 9. Be2 {[%emt 0:00:05]} Be7 {[%emt 0:00:45]} 10. O-O {[%emt 0:00:08]} O-O {[%emt 0:00:11]} 11. h3 {[%emt 0:16:10]} h6 {[%emt 0:00:05]} 12. a4 {[%emt 0:01:04]} Rd8 {[%emt 0:05:32]} 13. a5 {[%emt 0:14:05]} Bd6 {[%emt 0:03:17]} 14. Bxd6 {[%emt 0:00:40]} Rxd6 {[%emt 0:00:04]} 15. a6 {[%emt 0:01:20]} Rb8 {[%emt 0:02:04]} 16. axb7 {[%emt 0:08:18]} Qxb7 {[%emt 0:04:37]} 17. Qa3 {[%emt 0:08:36]} Rd7 {[%emt 0:02:01]} 18. b4 {[%emt 0:00:25]} Ne4 {[%emt 0:01:47]} 19. b5 {[%emt 0:00:38]} Ne7 {[%emt 0:00:46]} 20. Nxe4 {[%emt 0:00:27]} Bxe4 {[%emt 0:09:36]} 21. Nd2 {[%emt 0:03:27]} Ng6 {[%emt 0:01:09]} 22. g3 {[%emt 0:04:44]} e5 {[%emt 0:01:23]} 23. Nb3 {[%emt 0:01:25]} Qc8 {[%emt 0:00:22]} 24. Nc5 {[%emt 0:08:55]} Rc7 {[%emt 0:03:44]} 25. Bg4 {[%emt 0:06:39]} Bf5 {[%emt 0:02:42]} 26. Bxf5 {[%emt 0:05:23]} Qxf5 {[%emt 0:00:27]} 27. Na6 {[%emt 0:01:49]} Qxh3 {[%emt 0:04:37]} 28. Nxb8 {[%emt 0:01:35]} Nh4 {[%emt 0:01:03]} 1/2-1/2

[Event "Mukachevo IM June 2019"]
[Site "Mukachevo"]
[Date "2019.06.28"]
[Round "7.1"]
[White "Tiba, Vladyslav"]
[Black "Sakun, Volodymyr"]
[Result "1/2-1/2"]
[ECO "C67"]
[WhiteElo "2375"]
[BlackElo "2349"]
[Annotator "NA"]
[PlyCount "65"]
[EventDate "2019.06.24"]
[EventType "tourn"]
[EventCountry "UKR"]
[SourceTitle "playchess.com"]
[Source "ChessBase"]
[SourceQuality "1"]
[TimeControl "40/5400+30:900+30"]

1. e4 {[%emt 0:00:00]} e5 {[%emt 0:00:00]} 2. Nf3 {[%emt 0:00:00]} Nc6 {[%emt 0:00:00]} 3. Bb5 {[%emt 0:00:00]} Nf6 {[%emt 0:00:00]} 4. O-O {[%emt 0:01:46]} Nxe4 {[%emt 0:00:00]} 5. Re1 {[%emt 0:00:09]} Nd6 {[%emt 0:00:04]} 6. Nxe5 {[%emt 0:00:21]} Be7 {[%emt 0:00:19]} 7. Bf1 {[%emt 0:00:21]} Nxe5 {[%emt 0:00:10]} 8. Rxe5 {[%emt 0:00:05]} O-O {[%emt 0:00:03]} 9. d4 {[%emt 0:00:13]} Bf6 {[%emt 0:00:13]} 10. Re1 {[%emt 0:00:09]} Re8 {[%emt 0:00:05]} 11. Rxe8+ {[%emt 0:00:05]} Nxe8 {[%emt 0:00:10]} 12. d5 {[%emt 0:00:14]} d6 {[%emt 0:04:48]} 13. Nd2 {[%emt 0:01:47]} Bf5 $11 {[%emt 0:03:38]} 14. Nc4 {[%emt 0:01:26]} g6 {[%emt 0:12:36]} 15. c3 {[%emt 0:22:45]} c5 {[%emt 0:06:26]} 16. a4 {[%emt 0:04:56]} Bg5 {[%emt 0:02:25]} 17. f3 {[%emt 0:14:21]} b6 {[%emt 0:16:05]} 18. Qe1 {[%emt 0:06:37]} Bd7 {[%emt 0:04:05]} 19. Be3 {[%emt 0:05:04]} Qe7 {[%emt 0:10:33]} 20. Bf2 {[%emt 0:02:44]} Qxe1 {[%emt 0:01:35]} 21. Rxe1 {[%emt 0:04:25]} Kf8 {[%emt 0:13:02]} 22. h4 {[%emt 0:13:28]} Be7 {[%emt 0:01:02]} 23. b3 {[%emt 0:03:12]} f5 {[%emt 0:10:00]} 24. Bg3 {[%emt 0:03:08]} Kf7 {[%emt 0:00:47]} 25. Rd1 {[%emt 0:01:08]} Rd8 {[%emt 0:01:34]} 26. Na3 {[%emt 0:04:00]} Bf6 {[%emt 0:00:50]} 27. Be1 {[%emt 0:01:02]} Nc7 {[%emt 0:02:07]} 28. g3 {[%emt 0:05:37]} Bc8 {[%emt 0:01:31]} 29. f4 {[%emt 0:01:18]} Bd7 {[%emt 0:02:42]} 30. Nc4 {[%emt 0:01:21]} Be7 {[%emt 0:00:19]} 31. Bg2 {[%emt 0:01:08]} Ne8 {[%emt 0:01:05]} 32. Bf1 {[%emt 0:01:16]} Nf6 {[%emt 0:01:01]} 33. Bg2 {[%emt 0:00:45]} 1/2-1/2

[Event "Mukachevo IM June 2019"]
[Site "Mukachevo"]
[Date "2019.06.28"]
[Round "7.2"]
[White "Karelina, Polina"]
[Black "Terletsky, Oleg"]
[Result "0-1"]
[ECO "C55"]
[WhiteElo "1718"]
[BlackElo "2318"]
[Annotator "NA"]
[PlyCount "56"]
[EventDate "2019.06.24"]
[EventType "tourn"]
[EventCountry "UKR"]
[SourceTitle "playchess.com"]
[Source "ChessBase"]
[SourceQuality "1"]
[TimeControl "40/5400+30:900+30"]

1. e4 {[%emt 0:00:00]} e5 {[%emt 0:00:06]} 2. Nf3 {[%emt 0:00:00]} Nc6 {[%emt 0:00:07]} 3. Bc4 {[%emt 0:00:00]} Nf6 {[%emt 0:00:06]} 4. d3 {[%emt 0:00:11]} h6 {[%emt 0:00:06]} 5. h3 {[%emt 0:01:04]} d6 {[%emt 0:00:23]} 6. a4 {[%emt 0:00:06]} g6 {[%emt 0:01:01]} 7. O-O {[%emt 0:00:24]} Bg7 {[%emt 0:00:06]} 8. c3 {[%emt 0:02:14]} O-O {[%emt 0:01:48]} 9. Re1 {[%emt 0:02:20]} Kh7 {[%emt 0:01:55]} 10. Na3 {[%emt 0:01:37]} Be6 {[%emt 0:12:23]} 11. d4 {[%emt 0:01:34]} (11. Bxe6 $14 fxe6 12. b4) 11... Bxc4 {[%emt 0:04:08]} 12. Nxc4 {[%emt 0:01:36]} exd4 {[%emt 0:00:36]} 13. cxd4 {[%emt 0:01:35]} d5 {[%emt 0:00:47]} 14. exd5 $11 {[%emt 0:01:31]} Nxd5 {[%emt 0:00:10]} 15. Nce5 {[%emt 0:00:59]} Nxe5 {[%emt 0:09:05]} 16. dxe5 {[%emt 0:01:52]} Qd7 {[%emt 0:01:28]} 17. b3 {[%emt 0:02:18]} Rad8 {[%emt 0:00:35]} 18. Bb2 {[%emt 0:00:56]} c5 {[%emt 0:06:43]} 19. Nd2 {[%emt 0:02:46]} Nf4 {[%emt 0:02:24]} 20. Nc4 {[%emt 0:02:32]} Nd3 {[%emt 0:08:43]} 21. Re2 {[%emt 0:01:52]} Qf5 {[%emt 0:02:50]} 22. Qc2 {[%emt 0:02:33]} Nf4 {[%emt 0:00:47]} 23. Rd2 {[%emt 0:01:29]} Qg5 {[%emt 0:00:08]} 24. g3 {[%emt 0:06:45]} Nxh3+ {[%emt 0:00:11]} 25. Kh2 {[%emt 0:00:08]} Rxd2 {[%emt 0:00:26]} 26. Nxd2 {[%emt 0:01:32]} Nxf2 {[%emt 0:00:22]} 27. Nf3 {[%emt 0:00:42]} Ng4+ {[%emt 0:00:16]} 28. Kg1 {[%emt 0:01:31]} Qe3+ {[%emt 0:00:15]} 0-1

[Event "Mukachevo IM June 2019"]
[Site "Mukachevo"]
[Date "2019.06.28"]
[Round "7.3"]
[White "Oros, Robert"]
[Black "Vachylia, Andrii"]
[Result "1/2-1/2"]
[ECO "D47"]
[WhiteElo "2321"]
[BlackElo "2263"]
[Annotator "NA"]
[PlyCount "172"]
[EventDate "2019.06.24"]
[EventType "tourn"]
[EventCountry "UKR"]
[SourceTitle "playchess.com"]
[Source "ChessBase"]
[SourceQuality "1"]
[TimeControl "40/5400+30:900+30"]

1. Nf3 {[%emt 0:00:00]} d5 {[%emt 0:00:06]} 2. d4 {[%emt 0:00:03]} Nf6 {[%emt 0:00:07]} 3. c4 {[%emt 0:00:08]} c6 {[%emt 0:00:03]} 4. e3 {[%emt 0:00:24]} e6 {[%emt 0:00:05]} 5. Nc3 {[%emt 0:00:09]} Nbd7 {[%emt 0:00:08]} 6. Bd3 {[%emt 0:00:11]} dxc4 {[%emt 0:00:04]} 7. Bxc4 {[%emt 0:00:10]} b5 {[%emt 0:00:02]} 8. Bb3 {[%emt 0:00:36]} b4 {[%emt 0:04:52]} 9. Ne2 {[%emt 0:01:58]} Ba6 {[%emt 0:00:24]} 10. O-O {[%emt 0:01:23]} c5 {[%emt 0:00:05]} 11. Re1 {[%emt 0:00:45]} c4 {[%emt 0:01:11]} 12. Bc2 {[%emt 0:00:41]} Bb7 {[%emt 0:22:04]} 13. Ng3 {[%emt 0:00:31]} h5 {[%emt 0:01:28]} 14. h4 {[%emt 0:02:44]} Bd6 {[%emt 0:00:50]} 15. e4 $11 {[%emt 0:00:46]} Bxg3 {[%emt 0:00:54]} 16. fxg3 {[%emt 0:00:06]} Ng4 {[%emt 0:00:32]} 17. Qe2 {[%emt 0:11:16]} Rc8 {[%emt 0:05:44]} 18. Bg5 {[%emt 0:00:44]} Qb6 {[%emt 0:02:01]} 19. Ba4 {[%emt 0:00:22]} Qa6 {[%emt 0:03:11]} 20. Bxd7+ {[%emt 0:01:31]} Kxd7 {[%emt 0:00:06]} 21. Ne5+ {[%emt 0:00:06]} Nxe5 {[%emt 0:00:26]} 22. dxe5 {[%emt 0:00:06]} Rc7 {[%emt 0:01:33]} 23. a3 {[%emt 0:02:21]} b3 {[%emt 0:00:29]} 24. Rad1+ {[%emt 0:01:06]} Kc8 {[%emt 0:00:12]} 25. Rd6 {[%emt 0:00:15]} Bc6 {[%emt 0:00:20]} 26. Rc1 {[%emt 0:01:52]} Qb7 {[%emt 0:17:19]} 27. Qd2 {[%emt 0:03:02]} Qb5 {[%emt 0:01:37]} 28. Qd4 {[%emt 0:08:01]} Bd7 {[%emt 0:03:51]} 29. Kh2 {[%emt 0:01:13]} Kb8 {[%emt 0:02:35]} 30. a4 {[%emt 0:10:38]} Qxa4 {[%emt 0:00:33]} 31. Qg1 {[%emt 0:00:13]} c3 {[%emt 0:10:11]} 32. Ra1 {[%emt 0:02:34]} Qxe4 {[%emt 0:00:47]} 33. bxc3 {[%emt 0:02:41]} Bc6 {[%emt 0:04:32]} 34. Rd4 {[%emt 0:03:19]} Qc2 {[%emt 0:00:09]} 35. Rd2 {[%emt 0:05:30]} Qxc3 {[%emt 0:00:39]} 36. Rc1 {[%emt 0:00:34]} Qb4 {[%emt 0:01:14]} 37. Rd6 {[%emt 0:04:12]} b2 {[%emt 0:05:01]} 38. Rb1 {[%emt 0:00:37]} Be4 {[%emt 0:00:10]} 39. Rd4 {[%emt 0:01:04]} Qb7 {[%emt 0:00:02]} 40. Rxe4 {[%emt 0:00:00]} Qxe4 {[%emt 0:00:00]} 41. Rxb2+ {[%emt 0:03:20]} Ka8 {[%emt 0:00:13]} 42. Qd1 {[%emt 0:02:16]} Rhc8 {[%emt 0:11:03]} 43. Re2 {[%emt 0:01:34]} Qc4 {[%emt 0:00:21]} 44. Rd2 {[%emt 0:00:57]} g6 {[%emt 0:00:48]} 45. Qf3+ {[%emt 0:00:52]} Qc6 {[%emt 0:00:06]} 46. Qf2 {[%emt 0:00:37]} Rb7 {[%emt 0:00:49]} 47. Be3 {[%emt 0:01:20]} Qe4 {[%emt 0:02:50]} 48. Ra2 {[%emt 0:00:40]} Rcc7 {[%emt 0:00:04]} 49. Bb6 {[%emt 0:00:48]} Rc4 {[%emt 0:02:27]} 50. Bxa7 {[%emt 0:02:27]} Ra4 {[%emt 0:00:24]} 51. Rxa4 {[%emt 0:05:49]} Qxa4 {[%emt 0:00:03]} 52. Bc5 {[%emt 0:00:48]} Qc4 {[%emt 0:01:31]} 53. Bd6 {[%emt 0:03:02]} Qc6 {[%emt 0:07:53]} 54. Bc5 {[%emt 0:01:40]} Kb8 {[%emt 0:00:57]} 55. Bd6+ {[%emt 0:00:19]} Kc8 {[%emt 0:00:08]} 56. Qa2 {[%emt 0:01:23]} Rb6 {[%emt 0:00:27]} 57. Qf2 {[%emt 0:00:40]} Rb7 {[%emt 0:01:06]} 58. Qa2 {[%emt 0:00:10]} Rb5 {[%emt 0:00:07]} 59. Qf2 {[%emt 0:04:02]} f5 {[%emt 0:00:56]} 60. Qd2 {[%emt 0:02:00]} Rb1 {[%emt 0:01:41]} 61. Qa2 {[%emt 0:01:41]} Qc1 {[%emt 0:02:26]} 62. Qxe6+ {[%emt 0:05:14]} Kb7 {[%emt 0:00:03]} 63. Qd5+ {[%emt 0:02:54]} Kb6 {[%emt 0:00:10]} 64. Qd4+ {[%emt 0:00:49]} Kc6 {[%emt 0:01:31]} 65. Qa4+ {[%emt 0:00:14]} Kd5 {[%emt 0:00:17]} 66. Qa2+ {[%emt 0:01:05]} Ke4 {[%emt 0:00:37]} 67. Qe2+ {[%emt 0:02:28]} Kd4 {[%emt 0:00:08]} 68. Qf2+ {[%emt 0:00:44]} Kd3 {[%emt 0:00:14]} 69. Qf3+ {[%emt 0:01:16]} Qe3 {[%emt 0:00:11]} 70. Qd5+ {[%emt 0:04:14]} Qd4 {[%emt 0:00:34]} 71. Qxd4+ {[%emt 0:05:28]} Kxd4 {[%emt 0:00:04]} 72. e6 {[%emt 0:00:05]} Kd5 {[%emt 0:00:08]} 73. e7 {[%emt 0:00:07]} Re1 {[%emt 0:00:02]} 74. Bb4 {[%emt 0:00:08]} Re4 {[%emt 0:00:04]} 75. Kg1 {[%emt 0:00:21]} Kc6 {[%emt 0:00:04]} 76. Kf2 {[%emt 0:00:35]} Kd7 {[%emt 0:00:03]} 77. Bc5 {[%emt 0:00:18]} Ke8 {[%emt 0:00:16]} 78. Kf3 {[%emt 0:00:24]} Kf7 {[%emt 0:00:02]} 79. Ba3 {[%emt 0:00:28]} Kf6 {[%emt 0:00:56]} 80. Bc5 {[%emt 0:00:15]} g5 {[%emt 0:00:47]} 81. hxg5+ {[%emt 0:01:18]} Kxg5 {[%emt 0:00:03]} 82. Ba3 {[%emt 0:01:38]} Kf6 {[%emt 0:00:19]} 83. Bc5 {[%emt 0:00:12]} Kf7 {[%emt 0:00:25]} 84. Bd6 {[%emt 0:00:14]} Re1 {[%emt 0:00:12]} 85. Kf4 {[%emt 0:01:09]} Kf6 {[%emt 0:00:41]} 86. Bb4 {[%emt 0:00:20]} Re4+ 1/2-1/2

[Event "Mukachevo IM June 2019"]
[Site "Mukachevo"]
[Date "2019.06.28"]
[Round "7.4"]
[White "Boricsev, Oleg"]
[Black "Terbe, Zsuzsanna"]
[Result "1/2-1/2"]
[ECO "B22"]
[WhiteElo "2252"]
[BlackElo "2160"]
[Annotator "NA"]
[PlyCount "61"]
[EventDate "2019.06.24"]
[EventType "tourn"]
[EventCountry "UKR"]
[SourceTitle "playchess.com"]
[Source "ChessBase"]
[SourceQuality "1"]
[TimeControl "40/5400+30:900+30"]

1. e4 {[%emt 0:01:07]} c5 {[%emt 0:00:00]} 2. c3 {[%emt 0:00:05]} d5 {[%emt 0:00:00]} 3. exd5 {[%emt 0:00:05]} Qxd5 {[%emt 0:00:00]} 4. d4 {[%emt 0:00:01]} Nc6 {[%emt 0:00:01]} 5. Nf3 {[%emt 0:00:07]} Bg4 {[%emt 0:00:07]} 6. Be2 {[%emt 0:00:16]} cxd4 {[%emt 0:00:07]} 7. cxd4 {[%emt 0:00:14]} e6 {[%emt 0:00:07]} 8. h3 {[%emt 0:00:43]} Bb4+ {[%emt 0:00:16]} 9. Nc3 {[%emt 0:00:21]} Bxf3 {[%emt 0:00:22]} 10. Bxf3 {[%emt 0:00:20]} Qc4 {[%emt 0:00:06]} 11. Be3 {[%emt 0:03:54]} Bxc3+ {[%emt 0:10:15]} 12. bxc3 {[%emt 0:00:58]} Qxc3+ {[%emt 0:00:06]} 13. Kf1 {[%emt 0:04:34]} Nge7 {[%emt 0:00:58]} 14. Rb1 {[%emt 0:01:25]} O-O {[%emt 0:04:11]} 15. Rxb7 {[%emt 0:00:25]} Rad8 $15 {[%emt 0:01:11]} (15... Rfb8 $17 16. Rxb8+ Rxb8) 16. Kg1 {[%emt 0:03:00]} Nd5 {[%emt 0:03:04]} 17. Kh2 {[%emt 0:03:26]} e5 {[%emt 0:08:28]} 18. Bxd5 {[%emt 0:06:50]} Rxd5 {[%emt 0:00:20]} 19. Qf3 {[%emt 0:00:12]} Qa5 {[%emt 0:02:33]} 20. dxe5 {[%emt 0:08:01]} Nxe5 {[%emt 0:00:18]} 21. Qe4 {[%emt 0:02:59]} Qxa2 {[%emt 0:03:08]} 22. Rxa7 {[%emt 0:08:06]} Qc4 {[%emt 0:00:24]} 23. Qxc4 {[%emt 0:00:43]} Nxc4 {[%emt 0:00:05]} 24. Bf4 {[%emt 0:01:09]} Ne5 {[%emt 0:00:46]} 25. Rb1 {[%emt 0:02:30]} Rd7 {[%emt 0:01:12]} 26. Rxd7 {[%emt 0:00:19]} Nxd7 {[%emt 0:00:05]} 27. Rb7 {[%emt 0:01:01]} Nc5 {[%emt 0:00:21]} 28. Rb8 {[%emt 0:00:32]} Rxb8 {[%emt 0:00:08]} 29. Bxb8 {[%emt 0:00:07]} Ne6 {[%emt 0:00:05]} 30. Bd6 {[%emt 0:01:07]} h6 {[%emt 0:00:22]} 31. g4 {[%emt 0:00:54]} 1/2-1/2

[Event "Mukachevo IM June 2019"]
[Site "Mukachevo"]
[Date "2019.06.28"]
[Round "7.5"]
[White "Priehoda, Vitezslav"]
[Black "Larkin, Vladyslav"]
[Result "1/2-1/2"]
[ECO "A37"]
[WhiteElo "2361"]
[BlackElo "2398"]
[Annotator "NA"]
[PlyCount "141"]
[EventDate "2019.06.24"]
[EventType "tourn"]
[EventCountry "UKR"]
[SourceTitle "playchess.com"]
[Source "ChessBase"]
[SourceQuality "1"]
[TimeControl "40/5400+30:900+30"]

1. c4 {[%emt 0:00:00]} c5 {[%emt 0:02:12]} 2. Nf3 {[%emt 0:00:00]} Nc6 {[%emt 0:00:06]} 3. Nc3 {[%emt 0:00:54]} g6 {[%emt 0:00:25]} 4. g3 {[%emt 0:10:24]} Bg7 {[%emt 0:00:13]} 5. Bg2 {[%emt 0:00:06]} d6 {[%emt 0:00:35]} 6. O-O {[%emt 0:04:04]} Nh6 {[%emt 0:00:31]} 7. a3 $11 {[%emt 0:05:15]} O-O {[%emt 0:16:37]} 8. d3 {[%emt 0:00:08]} Nf5 {[%emt 0:02:48]} 9. Bd2 {[%emt 0:00:10]} a6 {[%emt 0:00:18]} 10. Rb1 {[%emt 0:01:10]} Rb8 {[%emt 0:00:04]} 11. b4 {[%emt 0:03:02]} cxb4 {[%emt 0:00:51]} 12. axb4 {[%emt 0:00:02]} b5 {[%emt 0:00:17]} 13. cxb5 {[%emt 0:00:28]} axb5 {[%emt 0:00:05]} 14. e3 {[%emt 0:02:23]} d5 {[%emt 0:36:51]} 15. Nxd5 {[%emt 0:22:47]} e6 {[%emt 0:00:28]} 16. Nc3 {[%emt 0:00:36]} Qxd3 {[%emt 0:00:37]} 17. Qe2 {[%emt 0:07:14]} Rd8 {[%emt 0:03:45]} 18. Qxd3 {[%emt 0:00:42]} Rxd3 {[%emt 0:00:08]} 19. Ne4 {[%emt 0:00:05]} Bb7 {[%emt 0:11:37]} 20. Nc5 {[%emt 0:01:10]} Rd6 {[%emt 0:01:24]} 21. Nxb7 {[%emt 0:11:00]} Rxb7 {[%emt 0:00:09]} 22. Rfc1 {[%emt 0:00:08]} Rbd7 {[%emt 0:00:58]} 23. Be1 {[%emt 0:00:07]} Nfe7 {[%emt 0:04:37]} 24. Nd2 {[%emt 0:10:21]} f5 {[%emt 0:06:04]} 25. Nb3 {[%emt 0:00:04]} Ne5 {[%emt 0:03:30]} 26. Nc5 {[%emt 0:00:17]} Nd3 {[%emt 0:00:08]} 27. Rd1 {[%emt 0:05:58]} Nb2 {[%emt 0:00:18]} 28. Rdc1 {[%emt 0:05:06]} Nd3 {[%emt 0:00:38]} 29. Nxd7 {[%emt 0:03:18]} Nxc1 {[%emt 0:00:05]} 30. Rxc1 {[%emt 0:00:12]} Rxd7 {[%emt 0:00:04]} 31. Kf1 {[%emt 0:00:18]} Kf7 {[%emt 0:05:04]} 32. Bf3 {[%emt 0:01:15]} Rd6 {[%emt 0:01:23]} 33. Rc7 {[%emt 0:00:19]} Rb6 {[%emt 0:00:07]} 34. Be2 {[%emt 0:01:07]} Be5 {[%emt 0:00:13]} 35. Ra7 {[%emt 0:00:38]} Bd6 {[%emt 0:02:49]} 36. f4 {[%emt 0:03:06]} Bb8 {[%emt 0:00:23]} 37. Ra3 {[%emt 0:00:54]} Bd6 {[%emt 0:01:13]} 38. Bf3 {[%emt 0:00:24]} Nc6 {[%emt 0:00:08]} 39. Rb3 {[%emt 0:01:27]} Ke7 {[%emt 0:00:08]} 40. Ke2 {[%emt 0:00:00]} Ra6 {[%emt 0:00:00]} 41. Bc3 {[%emt 0:08:11]} Ra2+ {[%emt 0:04:13]} 42. Kf1 {[%emt 0:00:10]} Kd7 {[%emt 0:00:35]} 43. Be2 {[%emt 0:00:07]} Na7 {[%emt 0:01:08]} 44. Bd4 {[%emt 0:01:06]} Ra4 {[%emt 0:06:18]} 45. Bxa7 {[%emt 0:01:24]} Rxa7 {[%emt 0:00:01]} 46. Bxb5+ {[%emt 0:00:07]} Kc7 {[%emt 0:00:02]} 47. Be2 {[%emt 0:02:22]} Kb6 {[%emt 0:01:38]} 48. b5 {[%emt 0:00:21]} Bc5 {[%emt 0:00:04]} 49. Kf2 {[%emt 0:00:07]} Ra4 {[%emt 0:00:32]} 50. Rd3 {[%emt 0:01:13]} e5 {[%emt 0:00:40]} 51. fxe5 {[%emt 0:01:26]} Re4 {[%emt 0:00:02]} 52. Bf3 {[%emt 0:00:12]} Rxe5 {[%emt 0:00:08]} 53. Bc6 {[%emt 0:00:14]} Re7 {[%emt 0:01:03]} 54. Kf3 {[%emt 0:00:09]} g5 {[%emt 0:00:48]} 55. Bd7 {[%emt 0:00:29]} Re5 {[%emt 0:00:46]} 56. Rb3 {[%emt 0:01:11]} h6 {[%emt 0:00:38]} 57. Bc6 {[%emt 0:00:16]} Re7 {[%emt 0:00:51]} 58. h3 {[%emt 0:00:57]} h5 {[%emt 0:01:04]} 59. Rd3 {[%emt 0:00:08]} h4 {[%emt 0:01:46]} 60. gxh4 {[%emt 0:00:28]} gxh4 {[%emt 0:00:01]} 61. Bd7 {[%emt 0:01:06]} Bxe3 {[%emt 0:01:26]} 62. Rxe3 {[%emt 0:01:44]} Rxd7 {[%emt 0:00:08]} 63. Kf4 {[%emt 0:00:10]} Kxb5 {[%emt 0:00:11]} 64. Kxf5 {[%emt 0:00:07]} Kc5 {[%emt 0:00:34]} 65. Kg5 {[%emt 0:01:01]} Kd4 {[%emt 0:01:16]} 66. Re8 {[%emt 0:00:36]} Rh7 {[%emt 0:01:30]} 67. Kg6 {[%emt 0:00:08]} Rd7 {[%emt 0:00:11]} 68. Rh8 {[%emt 0:00:10]} Ke5 {[%emt 0:00:04]} 69. Rxh4 {[%emt 0:00:20]} Rd3 {[%emt 0:00:53]} 70. Rh5+ {[%emt 0:00:29]} Kf4 {[%emt 0:00:26]} 71. Rf5+ {Ke5} 1/2-1/2

[Event "Mukachevo IM June 2019"]
[Site "Mukachevo"]
[Date "2019.06.28"]
[Round "8.1"]
[White "Sakun, Volodymyr"]
[Black "Terletsky, Oleg"]
[Result "1-0"]
[ECO "C92"]
[WhiteElo "2349"]
[BlackElo "2318"]
[Annotator "NA"]
[PlyCount "81"]
[EventDate "2019.06.24"]
[EventType "tourn"]
[EventCountry "UKR"]
[SourceTitle "playchess.com"]
[Source "ChessBase"]
[SourceQuality "1"]
[TimeControl "40/5400+30:900+30"]

1. e4 {[%emt 0:00:00]} e5 {[%emt 0:00:00]} 2. Nf3 {[%emt 0:00:00]} Nc6 {[%emt 0:00:00]} 3. Bb5 {[%emt 0:00:00]} a6 {[%emt 0:00:00]} 4. Ba4 {[%emt 0:00:00]} Nf6 {[%emt 0:00:00]} 5. O-O {[%emt 0:00:00]} Be7 {[%emt 0:00:00]} 6. Re1 {[%emt 0:00:00]} b5 {[%emt 0:00:01]} 7. Bb3 {[%emt 0:00:00]} d6 {[%emt 0:00:09]} 8. c3 {[%emt 0:00:00]} O-O {[%emt 0:00:06]} 9. h3 {[%emt 0:00:00]} Bb7 {[%emt 0:00:10]} 10. d4 {[%emt 0:00:02]} Re8 {[%emt 0:00:10]} 11. Nbd2 {[%emt 0:00:04]} Bf8 {[%emt 0:00:06]} 12. a3 {[%emt 0:00:13]} h6 {[%emt 0:00:11]} 13. Bc2 {[%emt 0:00:07]} Nb8 {[%emt 0:00:05]} 14. b3 {[%emt 0:00:06]} Nbd7 {[%emt 0:01:47]} 15. Bb2 {[%emt 0:00:14]} g6 {[%emt 0:08:09]} 16. Bd3 {[%emt 0:02:49]} Bg7 {[%emt 0:02:56]} 17. Qc2 {[%emt 0:04:57]} c6 {[%emt 0:13:35]} 18. a4 {[%emt 0:03:43]} Qc7 {[%emt 0:01:56]} 19. Rad1 {[%emt 0:14:12]} Rad8 {[%emt 0:02:26]} 20. axb5 {[%emt 0:04:14]} axb5 {[%emt 0:01:38]} 21. c4 {[%emt 0:05:14]} exd4 {[%emt 0:04:36]} 22. cxb5 {[%emt 0:03:39]} Nc5 {[%emt 0:04:11]} 23. bxc6 {[%emt 0:08:39]} Nxd3 {[%emt 0:01:57]} 24. Qxd3 {[%emt 0:00:20]} Bxc6 {[%emt 0:01:12]} 25. Nxd4 {[%emt 0:06:02]} Ba8 {[%emt 0:01:06]} 26. Rc1 {[%emt 0:08:28]} Qd7 {[%emt 0:02:16]} 27. Ba1 {[%emt 0:10:18]} d5 {[%emt 0:02:48]} 28. e5 {[%emt 0:00:52]} Ne4 {[%emt 0:00:35]} 29. N2f3 {[%emt 0:02:45]} Bf8 {[%emt 0:13:27]} 30. e6 {[%emt 0:04:27]} fxe6 {[%emt 0:02:52]} 31. Ne5 {[%emt 0:00:41]} Qh7 {[%emt 0:08:00]} 32. Ndc6 {[%emt 0:02:22]} Bxc6 {[%emt 0:00:58]} 33. Rxc6 {[%emt 0:01:09]} Bc5 {[%emt 0:04:14]} 34. Bd4 {[%emt 0:00:30]} Bxd4 {[%emt 0:01:40]} 35. Qxd4 {[%emt 0:00:04]} Qg7 {[%emt 0:00:19]} 36. Rec1 {[%emt 0:04:43]} Nd6 {[%emt 0:01:01]} 37. Rc7 {[%emt 0:04:42]} Qf6 {[%emt 0:01:01]} 38. Qe3 {[%emt 0:01:29]} Nf5 {[%emt 0:10:20]} 39. Ng4 {[%emt 0:01:11]} Qh8 {[%emt 0:01:11]} 40. Qa7 {[%emt 0:00:00]} h5 {[%emt 0:00:00]} 41. Rh7 {[%emt 0:04:44]} 1-0